[Event "56th Biel Festival MTO 2023"]
[White "Besou,Hussain"]
[Black "Samadov,Read"]
[Site "Biel"]
[Round "3.13"]
[Annotator "RC"]
[Result "1/2-1/2"]
[Date "2023.07.19"]
[WhiteElo "2348"]
[BlackElo "2482"]
[PlyCount "106"]
[TimeControl "60"]

1. d4 {[%emt 0:0:0]} Nf6 {[%emt 0:0:0]} 2. c4 {[%emt 0:0:0]} g6 {[%emt 0:0:0]} 3. Nc3 {[%emt 0:0:0]} Bg7 {[%emt 0:0:0]} 4. e4 {[%emt 0:0:0]} d6 {[%emt 0:0:0]} 5. h3 {[%emt 0:0:0]} O-O {[%emt 0:0:0]} 6. Be3 {[%emt 0:0:0]} Nc6 {[%emt 0:0:0]} 7. Nf3 {[%emt 0:0:0]} e5 {[%emt 0:0:0]} 8. d5 {[%emt 0:0:0]} Nd4 {[%emt 0:0:0]} 9. Nxd4 {[%emt 0:12:8]} exd4 {[%emt 0:0:0]} 10. Bxd4 {[%emt 0:0:7]} Nxe4 {[%emt 0:0:2]} 11. Nxe4 {[%emt 0:4:40]} Qh4 {[%emt 0:0:53]} 12. g4 {[%emt 0:12:21]} Re8 {[%emt 0:0:51]} 13. Bg2 {[%emt 0:0:6]} Bf5 {[%emt 0:0:27]} 14. O-O {[%emt 0:2:53]} Bxe4 {[%emt 0:0:11]} 15. Bxg7 {[%emt 0:0:6]} Bxg2 {[%emt 0:0:11]} 16. Kxg2 {[%emt 0:0:7]} Kxg7 {[%emt 0:0:6]} 17. Qd4+ {[%emt 0:0:5]} Qf6 {[%emt 0:8:20]} 18. Qxf6+ {[%emt 0:0:11]} Kxf6 {[%emt 0:0:2]} 19. Rfe1 {[%emt 0:0:25]} a5 {[%emt 0:15:54]} 20. Kf3 {[%emt 0:12:48]} h6 {[%emt 0:16:35]} 21. h4 {[%emt 0:5:11]} Rab8 {[%emt 0:16:9]} 22. a4 {[%emt 0:11:14]} Rbc8 {[%emt 0:2:50]} 23. b3 {[%emt 0:9:4]} Rcd8 {[%emt 0:7:41]} 24. Rad1 {[%emt 0:4:35]} Rc8 {[%emt 0:5:40]} 25. Rxe8 {[%emt 0:8:6]} Rxe8 {[%emt 0:0:5]} 26. Rd4 {[%emt 0:0:27]} g5 {[%emt 0:5:15]} 27. hxg5+ {[%emt 0:2:8]} Kxg5 {[%emt 0:4:53]} 28. Rd1 {[%emt 0:1:57]} Re5 {[%emt 0:4:1]} 29. Rg1 {[%emt 0:4:27]} f6 {[%emt 0:1:31]} 30. Rh1 {[%emt 0:1:42]} f5 {[%emt 0:1:37]} 31. gxf5 {[%emt 0:3:10]} Rxf5+ {[%emt 0:0:11]} 32. Kg3 {[%emt 0:0:6]} Rf7 {[%emt 0:3:11]} 33. f3 {[%emt 0:2:0]} h5 {[%emt 0:2:43]} 34. Rh2 {[%emt 0:0:56]} Re7 {[%emt 0:1:33]} 35. f4+ {[%emt 0:0:58]} Kg6 {[%emt 0:0:13]} 36. Kf3 {[%emt 0:1:15]} Rh7 {[%emt 0:1:18]} 37. Rg2+ {[%emt 0:1:44]} Kf6 {[%emt 0:0:23]} 38. Rh2 {[%emt 0:1:15]} Kf5 {[%emt 0:1:15]} 39. Rh4 {[%emt 0:0:12]} Rh8 {[%emt 0:0:24]} 40. Ke3 {[%emt 0:0:6]} Rh7 {[%emt 0:0:48]} 41. Kf3 {[%emt 0:31:45]} c6 {[%emt 0:0:0]} 42. dxc6 {[%emt 0:0:0]} bxc6 {[%emt 0:0:0]} 43. Ke3 {[%emt 0:0:0]} Rh6 {[%emt 0:4:9]} 44. Kf3 {[%emt 0:0:0]} Rh7 {[%emt 0:4:44]} 45. Ke3 {[%emt 0:0:0]} Rh8 {[%emt 0:0:35]} 46. Kf3 {[%emt 0:0:0]} Kg6 {[%emt 0:5:50]} 47. Ke4 {[%emt 0:0:0]} Kf6 {[%emt 0:2:13]} 48. Kd4 {[%emt 0:0:0]} Kf5 {[%emt 0:1:24]} 49. Ke3 {[%emt 0:0:0]} Re8+ {[%emt 0:3:31]} 50. Kf3 {[%emt 0:0:0]} Kg6 {[%emt 0:0:46]} 51. Rh3 {[%emt 0:0:0]} Rb8 {[%emt 0:1:35]} 52. Ke4 {[%emt 0:0:0]} Re8+ {[%emt 0:0:16]} 53. Kd4 {[%emt 0:0:0]} Rh8 {[%emt 0:6:13]} 1/2-1/2

[Event "56th Biel Festival MTO 2023"]
[White "Wang,Chen"]
[Black "Wessman,Richard"]
[Site "Biel"]
[Round "3.14"]
[Annotator "RC"]
[Result "1/2-1/2"]
[Date "2023.07.19"]
[WhiteElo "2477"]
[BlackElo "2410"]
[PlyCount "157"]
[TimeControl "60"]

1. e4 {[%emt 0:0:0]} c6 {[%emt 0:0:0]} 2. Nf3 {[%emt 0:0:0]} d5 {[%emt 0:0:0]} 3. Nc3 {[%emt 0:0:0]} Bg4 {[%emt 0:0:0]} 4. h3 {[%emt 0:0:0]} Bxf3 {[%emt 0:0:0]} 5. Qxf3 {[%emt 0:0:0]} e6 {[%emt 0:0:0]} 6. Be2 {[%emt 0:0:0]} Nf6 {[%emt 0:0:0]} 7. O-O {[%emt 0:0:0]} dxe4 {[%emt 0:4:46]} 8. Nxe4 {[%emt 0:0:0]} Nxe4 {[%emt 0:0:6]} 9. Qxe4 {[%emt 0:0:0]} Nd7 {[%emt 0:4:31]} 10. d4 {[%emt 0:0:0]} Nf6 {[%emt 0:0:12]} 11. Qd3 {[%emt 0:0:0]} Be7 {[%emt 0:0:44]} 12. a4 {[%emt 0:0:0]} O-O {[%emt 0:3:23]} 13. a5 {[%emt 0:0:4]} a6 {[%emt 0:0:15]} 14. c3 {[%emt 0:0:25]} Qc7 {[%emt 0:6:43]} 15. Re1 {[%emt 0:29:37]} Rad8 {[%emt 0:1:40]} 16. Qf3 {[%emt 0:9:42]} Rfe8 {[%emt 0:28:57]} 17. Bc4 {[%emt 0:19:23]} Nd5 {[%emt 0:5:8]} 18. b4 {[%emt 0:2:45]} Bf6 {[%emt 0:3:8]} 19. Ra2 {[%emt 0:3:55]} Qe7 {[%emt 0:3:42]} 20. Ba3 {[%emt 0:2:15]} Qc7 {[%emt 0:1:4]} 21. Rae2 {[%emt 0:4:30]} Rd7 {[%emt 0:4:53]} 22. Bc1 {[%emt 0:5:19]} Qd8 {[%emt 0:0:23]} 23. g3 {[%emt 0:2:42]} Bg5 {[%emt 0:1:26]} 24. Bb2 {[%emt 0:0:23]} Qf6 {[%emt 0:1:0]} 25. Qg2 {[%emt 0:3:52]} Qd8 {[%emt 0:2:23]} 26. h4 {[%emt 0:0:41]} Bf6 {[%emt 0:1:13]} 27. Qf3 {[%emt 0:3:36]} g6 {[%emt 0:5:10]} 28. Bc1 {[%emt 0:2:20]} h5 {[%emt 0:2:16]} 29. Re4 {[%emt 0:1:0]} Bg7 {[%emt 0:1:25]} 30. Bg5 {[%emt 0:6:31]} Qb8 {[%emt 0:14:38]} 31. Bb3 {[%emt 0:1:13]} Qd6 {[%emt 0:2:3]} 32. R4e2 {[%emt 0:1:20]} Qf8 {[%emt 0:0:13]} 33. Bc2 {[%emt 0:1:12]} Bh6 {[%emt 0:0:19]} 34. Qd3 {[%emt 0:0:32]} Bxg5 {[%emt 0:0:34]} 35. hxg5 {[%emt 0:0:5]} Qg7 {[%emt 0:1:58]} 36. Re5 {[%emt 0:0:16]} Ne7 {[%emt 0:2:3]} 37. Bb3 {[%emt 0:0:7]} Nf5 {[%emt 0:0:45]} 38. Qf3 {[%emt 0:0:20]} Rd6 {[%emt 0:0:18]} 39. Qf4 {[%emt 0:1:2]} Red8 {[%emt 0:1:2]} 40. Kg2 {[%emt 0:1:39]} R8d7 {[%emt 0:1:23]} 41. Rh1 {[%emt 0:32:28]} Qf8 {[%emt 0:0:0]} 42. Re2 {[%emt 0:0:0]} Qg7 {[%emt 0:0:0]} 43. Qc1 {[%emt 0:0:0]} Qf8 {[%emt 0:0:0]} 44. Qf4 {[%emt 0:0:0]} Qe7 {[%emt 0:4:34]} 45. Re4 {[%emt 0:0:0]} Qf8 {[%emt 0:12:10]} 46. f3 {[%emt 0:0:0]} Qg7 {[%emt 0:5:17]} 47. Rd1 {[%emt 0:0:0]} Rd8 {[%emt 0:1:36]} 48. Kf2 {[%emt 0:0:0]} R8d7 {[%emt 0:1:46]} 49. Ke2 {[%emt 0:0:0]} Rd5 {[%emt 0:0:52]} 50. Kf2 {[%emt 0:0:0]} R5d6 {[%emt 0:0:15]} 51. Ke1 {[%emt 0:0:0]} Rd8 {[%emt 0:1:6]} 52. Re5 {[%emt 0:0:0]} Qh8 {[%emt 0:1:17]} 53. Rd2 {[%emt 0:0:0]} Qg7 {[%emt 0:1:27]} 54. Kd1 {[%emt 0:0:0]} Qf8 {[%emt 0:3:50]} 55. Kc2 {[%emt 0:0:0]} R6d7 {[%emt 0:1:39]} 56. g4 {[%emt 0:0:0]} Ng7 {[%emt 0:0:55]} 57. Rh2 {[%emt 0:0:0]} Rd5 {[%emt 0:1:16]} 58. Bxd5 {[%emt 0:0:0]} cxd5 {[%emt 0:0:9]} 59. Re1 {[%emt 0:0:0]} Rc8 {[%emt 0:0:7]} 60. Kd2 {[%emt 0:0:0]} Qe8 {[%emt 0:0:13]} 61. Qe3 {[%emt 0:3:49]} Qa4 {[%emt 0:1:49]} 62. Qd3 {[%emt 0:0:14]} Qa2+ {[%emt 0:0:0]} 63. Qc2 {[%emt 0:0:0]} Qc4 {[%emt 0:0:0]} 64. Rhh1 {[%emt 0:0:0]} Kf8 {[%emt 0:0:0]} 65. Re3 {[%emt 0:0:0]} Ke7 {[%emt 0:0:0]} 66. gxh5 {[%emt 0:0:0]} Nxh5 {[%emt 0:0:0]} 67. Kc1 {[%emt 0:0:0]} Ng3 {[%emt 0:0:0]} 68. Rg1 {[%emt 0:0:0]} Nf5 {[%emt 0:0:0]} 69. Rd3 {[%emt 0:0:0]} Rh8 {[%emt 0:0:0]} 70. Kb2 {[%emt 0:0:0]} Rh3 {[%emt 0:0:0]} 71. Rgd1 {[%emt 0:0:0]} Qc7 {[%emt 0:0:0]} 72. Kb1 {[%emt 0:1:25]} Qf4 {[%emt 0:0:0]} 73. c4 {[%emt 0:6:23]} Ne3 {[%emt 0:0:0]} 74. Qc1 {[%emt 0:4:34]} Rxf3 {[%emt 0:0:0]} 75. cxd5 {[%emt 0:0:20]} Nxd1 {[%emt 0:3:36]} 76. Rxf3 {[%emt 0:1:23]} Qxf3 {[%emt 0:0:36]} 77. Qc7+ {[%emt 0:0:31]} Kf8 {[%emt 0:1:7]} 78. Qb8+ {[%emt 0:0:0]} Kg7 {[%emt 0:0:11]} 79. Qe5+ {[%emt 0:0:0]} 1/2-1/2

[Event "56th Biel Festival MTO 2023"]
[White "Malli,Suvirr"]
[Black "Saraci,Nderim"]
[Site "Biel"]
[Round "3.15"]
[Annotator "RC"]
[Result "0-1"]
[Date "2023.07.19"]
[WhiteElo "2094"]
[BlackElo "2472"]
[PlyCount "52"]
[TimeControl "60"]

1. e4 {[%emt 0:0:0]} e5 {[%emt 0:0:0]} 2. Nf3 {[%emt 0:0:0]} Nc6 {[%emt 0:0:0]} 3. Bc4 {[%emt 0:0:0]} Bc5 {[%emt 0:0:0]} 4. d3 {[%emt 0:0:0]} Nf6 {[%emt 0:0:0]} 5. O-O {[%emt 0:0:0]} d6 {[%emt 0:0:0]} 6. Re1 {[%emt 0:0:0]} a6 {[%emt 0:4:13]} 7. a4 {[%emt 0:0:0]} O-O {[%emt 0:6:56]} 8. c3 {[%emt 0:0:0]} Ba7 {[%emt 0:1:52]} 9. a5 {[%emt 0:1:27]} Ne7 {[%emt 0:7:18]} 10. b4 {[%emt 0:5:40]} Ng6 {[%emt 0:3:37]} 11. Be3 {[%emt 0:4:45]} Bxe3 {[%emt 0:4:2]} 12. fxe3 {[%emt 0:0:59]} c6 {[%emt 0:3:37]} 13. Nbd2 {[%emt 0:12:56]} h6 {[%emt 0:8:4]} 14. Ba2 {[%emt 0:3:22]} Be6 {[%emt 0:6:49]} 15. Nf1 {[%emt 0:15:28]} Rc8 {[%emt 0:8:35]} 16. Bxe6 {[%emt 0:2:21]} fxe6 {[%emt 0:0:6]} 17. Qb3 {[%emt 0:0:25]} Qe7 {[%emt 0:3:18]} 18. Ng3 {[%emt 0:3:42]} Kh8 {[%emt 0:1:33]} 19. d4 {[%emt 0:5:53]} Ng4 {[%emt 0:10:0]} 20. h3 {[%emt 0:5:57]} Rxf3 {[%emt 0:2:44]} 21. gxf3 {[%emt 0:3:18]} Qh4 {[%emt 0:0:8]} 22. Nh1 {[%emt 0:16:18]} Qxh3 {[%emt 0:1:32]} 23. fxg4 {[%emt 0:0:32]} Nh4 {[%emt 0:0:53]} 24. Re2 {[%emt 0:1:51]} Nf3+ {[%emt 0:0:48]} 25. Kf2 {[%emt 0:0:8]} Qh2+ {[%emt 0:0:16]} 26. Kf1 {[%emt 0:0:30]} Qg1# {[%emt 0:0:7]} 0-1

[Event "56th Biel Festival MTO 2023"]
[White "Rathanvel,V S"]
[Black "Haimovich,Tal"]
[Site "Biel"]
[Round "3.16"]
[Annotator "RC"]
[Result "1/2-1/2"]
[Date "2023.07.19"]
[WhiteElo "2463"]
[BlackElo "2374"]
[PlyCount "81"]
[TimeControl "60"]

1. e4 {[%emt 0:0:0]} e5 {[%emt 0:0:0]} 2. Nf3 {[%emt 0:0:0]} Nc6 {[%emt 0:0:0]} 3. Bb5 {[%emt 0:0:0]} a6 {[%emt 0:0:0]} 4. Ba4 {[%emt 0:0:0]} d6 {[%emt 0:0:0]} 5. O-O {[%emt 0:0:0]} Bd7 {[%emt 0:0:0]} 6. c4 {[%emt 0:0:0]} g6 {[%emt 0:0:0]} 7. d4 {[%emt 0:0:0]} Bg7 {[%emt 0:0:0]} 8. Bxc6 {[%emt 0:9:2]} Bxc6 {[%emt 0:0:0]} 9. dxe5 {[%emt 0:0:10]} dxe5 {[%emt 0:0:0]} 10. Qc2 {[%emt 0:0:7]} Ne7 {[%emt 0:5:9]} 11. Nc3 {[%emt 0:12:19]} Bd7 {[%emt 0:16:46]} 12. Be3 {[%emt 0:23:13]} O-O {[%emt 0:10:25]} 13. Rfd1 {[%emt 0:12:14]} Qc8 {[%emt 0:17:11]} 14. h3 {[%emt 0:2:37]} Re8 {[%emt 0:7:56]} 15. Rd2 {[%emt 0:13:20]} b5 {[%emt 0:13:1]} 16. Rad1 {[%emt 0:3:50]} Bc6 {[%emt 0:1:36]} 17. Nd5 {[%emt 0:1:49]} Nxd5 {[%emt 0:2:34]} 18. cxd5 {[%emt 0:0:40]} Bb7 {[%emt 0:0:7]} 19. Rc1 {[%emt 0:1:21]} Qd8 {[%emt 0:4:36]} 20. Rd3 {[%emt 0:5:40]} f5 {[%emt 0:5:23]} 21. Bg5 {[%emt 0:13:48]} Bf6 {[%emt 0:3:7]} 22. Bxf6 {[%emt 0:0:15]} Qxf6 {[%emt 0:0:3]} 23. Nd2 {[%emt 0:0:11]} Rac8 {[%emt 0:1:48]} 24. Rc3 {[%emt 0:0:52]} Red8 {[%emt 0:6:39]} 25. Rc5 {[%emt 0:0:58]} c6 {[%emt 0:4:7]} 26. dxc6 {[%emt 0:0:23]} Rxc6 {[%emt 0:0:20]} 27. Rxc6 {[%emt 0:0:32]} Bxc6 {[%emt 0:0:5]} 28. Qxc6 {[%emt 0:0:36]} Qxc6 {[%emt 0:0:5]} 29. Rxc6 {[%emt 0:0:4]} Rxd2 {[%emt 0:0:6]} 30. exf5 {[%emt 0:0:37]} gxf5 {[%emt 0:1:31]} 31. Rxa6 {[%emt 0:0:15]} Rxb2 {[%emt 0:0:9]} 32. Re6 {[%emt 0:0:58]} Rb1+ {[%emt 0:0:44]} 33. Kh2 {[%emt 0:0:4]} Re1 {[%emt 0:0:13]} 34. f4 {[%emt 0:0:41]} Kf7 {[%emt 0:1:56]} 35. Rb6 {[%emt 0:0:37]} exf4 {[%emt 0:0:39]} 36. Rxb5 {[%emt 0:0:5]} Kf6 {[%emt 0:0:13]} 37. a4 {[%emt 0:1:5]} Ra1 {[%emt 0:0:28]} 38. Rb4 {[%emt 0:0:29]} Kg5 {[%emt 0:1:0]} 39. Rc4 {[%emt 0:0:14]} Ra2 {[%emt 0:0:39]} 40. Kg1 {[%emt 0:0:4]} Ra1+ {[%emt 0:0:8]} 41. Kh2 {[%emt 0:30:5]} 1/2-1/2

[Event "56th Biel Festival MTO 2023"]
[White "Muthaiah AL"]
[Black "Aarav Dengla"]
[Site "Biel"]
[Round "3.17"]
[Annotator "RC"]
[Result "1-0"]
[Date "2023.07.19"]
[WhiteElo "2445"]
[BlackElo "2343"]
[PlyCount "89"]
[TimeControl "60"]

1. d4 {[%emt 0:0:0]} d5 {[%emt 0:0:0]} 2. c4 {[%emt 0:0:0]} e6 {[%emt 0:0:0]} 3. Nc3 {[%emt 0:0:0]} a6 {[%emt 0:0:0]} 4. cxd5 {[%emt 0:0:0]} exd5 {[%emt 0:0:0]} 5. Bf4 {[%emt 0:0:0]} Nf6 {[%emt 0:0:0]} 6. e3 {[%emt 0:0:0]} c5 {[%emt 0:0:0]} 7. Nf3 {[%emt 0:0:0]} c4 {[%emt 0:0:0]} 8. Be2 {[%emt 0:0:12]} b5 {[%emt 0:0:0]} 9. O-O {[%emt 0:3:58]} Qb6 {[%emt 0:0:0]} 10. Ne5 {[%emt 0:6:30]} Bb4 {[%emt 0:0:0]} 11. a4 {[%emt 0:8:32]} Bb7 {[%emt 0:0:11]} 12. Na2 {[%emt 0:23:59]} Bd6 {[%emt 0:15:0]} 13. b3 {[%emt 0:1:40]} O-O {[%emt 0:0:45]} 14. bxc4 {[%emt 0:4:41]} dxc4 {[%emt 0:9:1]} 15. Nxc4 {[%emt 0:0:18]} bxc4 {[%emt 0:4:8]} 16. Rb1 {[%emt 0:0:13]} Qd8 {[%emt 0:7:56]} 17. Bxd6 {[%emt 0:3:9]} Bxg2 {[%emt 0:2:55]} 18. Bxf8 {[%emt 0:3:28]} Bxf1 {[%emt 0:2:42]} 19. Qxf1 {[%emt 0:1:33]} Kxf8 {[%emt 0:7:17]} 20. Bf3 {[%emt 0:1:22]} Ra7 {[%emt 0:4:26]} 21. Qxc4 {[%emt 0:0:20]} Nbd7 {[%emt 0:6:20]} 22. Nb4 {[%emt 0:3:20]} Qb6 {[%emt 0:2:46]} 23. Rb3 {[%emt 0:8:1]} Qd6 {[%emt 0:8:22]} 24. Nc6 {[%emt 0:3:31]} Rc7 {[%emt 0:0:59]} 25. Qxa6 {[%emt 0:3:11]} Ne8 {[%emt 0:1:5]} 26. Qb5 {[%emt 0:5:42]} Qg6+ {[%emt 0:4:4]} 27. Kf1 {[%emt 0:2:56]} Qc2 {[%emt 0:9:20]} 28. Qb4+ {[%emt 0:3:19]} Kg8 {[%emt 0:0:6]} 29. Rc3 {[%emt 0:2:51]} Qa2 {[%emt 0:8:35]} 30. Qa3 {[%emt 0:5:33]} Qb1+ {[%emt 0:4:50]} 31. Qc1 {[%emt 0:1:17]} Qb6 {[%emt 0:3:23]} 32. a5 {[%emt 0:0:43]} Qb5+ {[%emt 0:0:52]} 33. Be2 {[%emt 0:0:16]} Qg5 {[%emt 0:0:33]} 34. a6 {[%emt 0:1:21]} Kh8 {[%emt 0:1:17]} 35. a7 {[%emt 0:1:8]} Nb6 {[%emt 0:0:16]} 36. Qb1 {[%emt 0:3:26]} Rxc6 {[%emt 0:0:47]} 37. Rxc6 {[%emt 0:0:10]} Qd5 {[%emt 0:0:1]} 38. f3 {[%emt 0:1:4]} Qxc6 {[%emt 0:0:7]} 39. Qxb6 {[%emt 0:0:17]} Qxb6 {[%emt 0:0:37]} 40. a8=Q {[%emt 0:0:5]} Qe6 {[%emt 0:1:14]} 41. Bb5 {[%emt 0:30:49]} Qh3+ {[%emt 0:0:0]} 42. Kg1 {[%emt 0:0:0]} g6 {[%emt 0:0:0]} 43. Qxe8+ {[%emt 0:0:0]} Kg7 {[%emt 0:0:0]} 44. Qe5+ {[%emt 0:0:0]} Kg8 {[%emt 0:0:0]} 45. Be2 {[%emt 0:0:0]} 1-0

[Event "56th Biel Festival MTO 2023"]
[White "Meshkovs,Nikita"]
[Black "Nie,Xinyang"]
[Site "Biel"]
[Round "3.18"]
[Annotator "RC"]
[Result "1-0"]
[Date "2023.07.19"]
[WhiteElo "2565"]
[BlackElo "2288"]
[PlyCount "159"]
[TimeControl "60"]

1. c4 {[%emt 0:0:0]} c6 {[%emt 0:0:0]} 2. Nf3 {[%emt 0:0:0]} d5 {[%emt 0:0:0]} 3. e3 {[%emt 0:0:0]} Nf6 {[%emt 0:0:0]} 4. b3 {[%emt 0:0:0]} Bf5 {[%emt 0:0:0]} 5. Bb2 {[%emt 0:0:0]} e6 {[%emt 0:0:0]} 6. Be2 {[%emt 0:0:0]} h6 {[%emt 0:0:0]} 7. O-O {[%emt 0:0:0]} Nbd7 {[%emt 0:0:0]} 8. d4 {[%emt 0:0:0]} Be7 {[%emt 0:0:0]} 9. Nc3 {[%emt 0:0:0]} Ne4 {[%emt 0:0:0]} 10. Bd3 {[%emt 0:2:32]} Nxc3 {[%emt 0:0:0]} 11. Bxc3 {[%emt 0:0:2]} O-O {[%emt 0:0:0]} 12. Bxf5 {[%emt 0:5:27]} exf5 {[%emt 0:0:0]} 13. Qd3 {[%emt 0:2:19]} g6 {[%emt 0:0:0]} 14. cxd5 {[%emt 0:1:14]} cxd5 {[%emt 0:0:0]} 15. Qb5 {[%emt 0:0:16]} Nb6 {[%emt 0:0:0]} 16. Ne5 {[%emt 0:3:10]} a6 {[%emt 0:1:34]} 17. Qa5 {[%emt 0:2:30]} Rc8 {[%emt 0:0:55]} 18. Bb4 {[%emt 0:5:40]} Bxb4 {[%emt 0:0:58]} 19. Qxb4 {[%emt 0:38:44]} Qc7 {[%emt 0:0:30]} 20. Nd3 {[%emt 0:0:30]} Nd7 {[%emt 0:0:30]} 21. Rfc1 {[%emt 0:0:30]} Qb8 {[%emt 0:0:5]} 22. Qe7 {[%emt 0:2:18]} Rcd8 {[%emt 0:0:2]} 23. Qh4 {[%emt 0:3:19]} Kg7 {[%emt 0:0:17]} 24. Qf4 {[%emt 0:0:9]} Nf6 {[%emt 0:37:43]} 25. Qxb8 {[%emt 0:4:15]} Rxb8 {[%emt 0:0:4]} 26. Rc7 {[%emt 0:0:9]} Rfc8 {[%emt 0:0:2]} 27. Rac1 {[%emt 0:0:13]} Rxc7 {[%emt 0:0:40]} 28. Rxc7 {[%emt 0:0:2]} Ne8 {[%emt 0:0:4]} 29. Rc5 {[%emt 0:0:24]} Nf6 {[%emt 0:0:4]} 30. Rc7 {[%emt 0:0:32]} Ne8 {[%emt 0:0:6]} 31. Rc5 {[%emt 0:0:4]} Rd8 {[%emt 0:2:20]} 32. f3 {[%emt 0:3:44]} g5 {[%emt 0:7:7]} 33. Nb4 {[%emt 0:2:6]} Nf6 {[%emt 0:0:56]} 34. Rc7 {[%emt 0:0:9]} a5 {[%emt 0:1:40]} 35. Nd3 {[%emt 0:0:9]} Rd7 {[%emt 0:0:3]} 36. Rc5 {[%emt 0:0:19]} b6 {[%emt 0:0:23]} 37. Rc6 {[%emt 0:0:56]} Re7 {[%emt 0:0:33]} 38. Ne5 {[%emt 0:1:13]} Ne8 {[%emt 0:1:30]} 39. Kf2 {[%emt 0:9:30]} Rc7 {[%emt 0:15:14]} 40. Rxb6 {[%emt 0:7:21]} Rc2+ {[%emt 0:0:5]} 41. Kf1 {[%emt 0:33:52]} Rxa2 {[%emt 0:31:22]} 42. Rb7 {[%emt 0:2:16]} Rb2 {[%emt 0:0:29]} 43. Nxf7 {[%emt 0:0:0]} Kf6 {[%emt 0:0:0]} 44. Nd8 {[%emt 0:0:0]} f4 {[%emt 0:0:0]} 45. exf4 {[%emt 0:0:0]} gxf4 {[%emt 0:0:0]} 46. Rb6+ {[%emt 0:0:0]} Ke7 {[%emt 0:0:0]} 47. Nc6+ {[%emt 0:0:0]} Kd7 {[%emt 0:0:0]} 48. Ne5+ {[%emt 0:0:0]} Kc7 {[%emt 0:0:0]} 49. Rb5 {[%emt 0:0:0]} Kd6 {[%emt 0:0:0]} 50. Rxa5 {[%emt 0:0:0]} Nc7 {[%emt 0:0:0]} 51. Nd3 {[%emt 0:0:0]} Rd2 {[%emt 0:0:0]} 52. Nxf4 {[%emt 0:0:0]} Rxd4 {[%emt 0:0:0]} 53. Ra4 {[%emt 0:0:0]} Rd2 {[%emt 0:0:0]} 54. Rb4 {[%emt 0:0:0]} Kc5 {[%emt 0:0:0]} 55. Rb7 {[%emt 0:0:0]} Kc6 {[%emt 0:0:0]} 56. Rb8 {[%emt 0:0:0]} Rb2 {[%emt 0:0:0]} 57. h4 {[%emt 0:0:0]} d4 {[%emt 0:0:0]} 58. Rd8 {[%emt 0:0:37]} Nb5 {[%emt 0:0:0]} 59. Rc8+ {[%emt 0:5:24]} Kd6 {[%emt 0:0:0]} 60. Rd8+ {[%emt 0:1:10]} Kc6 {[%emt 0:0:0]} 61. Ne6 {[%emt 0:0:0]} Rd2 {[%emt 0:0:0]} 62. g4 {[%emt 0:0:0]} Nd6 {[%emt 0:0:0]} 63. g5 {[%emt 0:0:0]} hxg5 {[%emt 0:0:0]} 64. hxg5 {[%emt 0:0:0]} Nf5 {[%emt 0:0:0]} 65. g6 {[%emt 0:0:42]} Rd3 {[%emt 0:0:0]} 66. Kf2 {[%emt 0:1:45]} Rd2+ {[%emt 0:0:0]} 67. Ke1 {[%emt 0:0:39]} Rg2 {[%emt 0:0:0]} 68. Nxd4+ {[%emt 0:1:6]} Kc7 {[%emt 0:0:0]} 69. Ne6+ {[%emt 0:0:13]} Kb6 {[%emt 0:0:0]} 70. g7 {[%emt 0:1:6]} Nxg7 {[%emt 0:0:0]} 71. Nxg7 {[%emt 0:0:21]} Rxg7 {[%emt 0:0:0]} 72. b4 {[%emt 0:0:31]} Kb5 {[%emt 0:0:0]} 73. Rd4 {[%emt 0:0:2]} Ka4 {[%emt 0:0:0]} 74. Kd2 {[%emt 0:0:16]} Kb3 {[%emt 0:0:0]} 75. f4 {[%emt 0:0:26]} Rf7 {[%emt 0:0:0]} 76. Kd3 {[%emt 0:0:25]} Rf8 {[%emt 0:0:0]} 77. b5 {[%emt 0:0:35]} Rf5 {[%emt 0:0:0]} 78. b6 {[%emt 0:0:24]} Rb5 {[%emt 0:0:0]} 79. Rd6 {[%emt 0:0:2]} Kb4 {[%emt 0:0:0]} 80. Ke4 {[%emt 0:0:31]} 1-0

[Event "56th Biel Festival MTO 2023"]
[White "Peng,Xiongjian"]
[Black "Abdulrahman Mohammad,Al Taher"]
[Site "Biel"]
[Round "3.19"]
[Annotator "RC"]
[Result "1-0"]
[Date "2023.07.19"]
[WhiteElo "2489"]
[BlackElo "2258"]
[PlyCount "89"]
[TimeControl "60"]

1. c4 {[%emt 0:0:0]} e6 {[%emt 0:0:0]} 2. g3 {[%emt 0:0:0]} d5 {[%emt 0:0:0]} 3. Bg2 {[%emt 0:0:0]} Nf6 {[%emt 0:0:0]} 4. Nf3 {[%emt 0:0:0]} Be7 {[%emt 0:0:0]} 5. O-O {[%emt 0:0:0]} O-O {[%emt 0:0:0]} 6. Na3 {[%emt 0:0:0]} b6 {[%emt 0:1:2]} 7. b3 {[%emt 0:0:0]} Bb7 {[%emt 0:1:23]} 8. Bb2 {[%emt 0:0:0]} c5 {[%emt 0:2:8]} 9. d4 {[%emt 0:0:0]} Nbd7 {[%emt 0:5:56]} 10. Rc1 {[%emt 0:0:0]} Rc8 {[%emt 0:2:30]} 11. Qd3 {[%emt 0:2:0]} dxc4 {[%emt 0:13:55]} 12. Nxc4 {[%emt 0:0:23]} b5 {[%emt 0:0:47]} 13. Nce5 {[%emt 0:10:19]} Nxe5 {[%emt 0:7:47]} 14. Nxe5 {[%emt 0:0:12]} Bxg2 {[%emt 0:0:50]} 15. Kxg2 {[%emt 0:0:6]} Qb6 {[%emt 0:0:59]} 16. dxc5 {[%emt 0:1:0]} Bxc5 {[%emt 0:2:18]} 17. Qf3 {[%emt 0:14:42]} Rfe8 {[%emt 0:21:33]} 18. Rfd1 {[%emt 0:4:16]} Rcd8 {[%emt 0:11:36]} 19. g4 {[%emt 0:24:21]} Rxd1 {[%emt 0:8:4]} 20. Rxd1 {[%emt 0:0:9]} Rd8 {[%emt 0:1:24]} 21. Rxd8+ {[%emt 0:6:31]} Qxd8 {[%emt 0:0:1]} 22. g5 {[%emt 0:0:20]} Qd2 {[%emt 0:0:42]} 23. gxf6 {[%emt 0:1:22]} Qxb2 {[%emt 0:1:44]} 24. Nd7 {[%emt 0:2:15]} Qa3 {[%emt 0:0:53]} 25. Qh5 {[%emt 0:1:34]} Bd6 {[%emt 0:3:31]} 26. Qg5 {[%emt 0:3:2]} g6 {[%emt 0:0:49]} 27. Qxb5 {[%emt 0:1:30]} Qc1 {[%emt 0:0:48]} 28. e3 {[%emt 0:2:18]} Qd1 {[%emt 0:0:58]} 29. Ne5 {[%emt 0:1:32]} Bf8 {[%emt 0:2:58]} 30. Qb7 {[%emt 0:0:59]} Qd5+ {[%emt 0:1:9]} 31. Qxd5 {[%emt 0:0:6]} exd5 {[%emt 0:0:13]} 32. Nc6 {[%emt 0:0:28]} Bc5 {[%emt 0:0:40]} 33. b4 {[%emt 0:1:45]} Bb6 {[%emt 0:1:46]} 34. a4 {[%emt 0:1:29]} a6 {[%emt 0:0:23]} 35. a5 {[%emt 0:3:16]} Bc7 {[%emt 0:0:33]} 36. Ne7+ {[%emt 0:0:8]} Kf8 {[%emt 0:0:8]} 37. Nxd5 {[%emt 0:0:4]} Bd6 {[%emt 0:0:13]} 38. f4 {[%emt 0:0:51]} Ke8 {[%emt 0:0:25]} 39. e4 {[%emt 0:0:21]} Kd7 {[%emt 0:0:35]} 40. e5 {[%emt 0:0:10]} Bf8 {[%emt 0:0:13]} 41. Kf3 {[%emt 0:30:13]} Kc6 {[%emt 0:30:24]} 42. Ke4 {[%emt 0:0:19]} Kb5 {[%emt 0:0:21]} 43. Kd4 {[%emt 0:0:10]} Kc6 {[%emt 0:0:14]} 44. Kc4 {[%emt 0:0:14]} h6 {[%emt 0:0:15]} 45. Ne7+ {[%emt 0:1:26]} 1-0